[Event "Titled Tuesday Blitz March 07 Early 2023"]
[White "Kozak, Antoni"]
[Black "Dudzinski, Pawel"]
[WhiteFideId "21832030"]
[BlackFideId "1117890"]
[WhiteElo "2470"]
[BlackElo "2099"]
[Result "1-0"]
[Round "08"]
[TimeControl "180+2"]
[Date "2023.03.07"]
[WhiteClock "0:00:23"]
[BlackClock "0:00:06"]

1. e4 {[%clk 0:03:00]}  c6 {[%clk 0:02:56]} 2. Nf3 {[%clk 0:02:59]}  d5 {[%clk 0:02:56]} 3. d3 {[%clk 0:03:00]}  dxe4 {[%clk 0:02:54]} 4. dxe4 {[%clk 0:03:01]}  Qxd1+ {[%clk 0:02:55]} 5. Kxd1 {[%clk 0:03:02]}  g6 {[%clk 0:02:56]} 6. a4 {[%clk 0:02:57]}  Nf6 {[%clk 0:02:56]} 7. Nbd2 {[%clk 0:02:53]}  Bg7 {[%clk 0:02:54]} 8. Bc4 {[%clk 0:02:52]}  O-O {[%clk 0:02:53]} 9. Ne1 {[%clk 0:02:51]}  Rd8 {[%clk 0:02:53]} 10. f3 {[%clk 0:02:50]}  Nbd7 {[%clk 0:02:43]} 11. Nd3 {[%clk 0:02:48]}  a5 {[%clk 0:02:41]} 12. Ke2 {[%clk 0:02:47]}  b6 {[%clk 0:02:40]} 13. Nf1 {[%clk 0:02:42]}  Ba6 {[%clk 0:02:38]} 14. Bxa6 {[%clk 0:02:38]}  Rxa6 {[%clk 0:02:39]} 15. Be3 {[%clk 0:02:38]}  e5 {[%clk 0:02:07]} 16. Nd2 {[%clk 0:02:36]}  b5 {[%clk 0:02:02]} 17. Nb3 {[%clk 0:02:31]}  b4 {[%clk 0:01:59]} 18. Rad1 {[%clk 0:02:28]}  Raa8 {[%clk 0:01:52]} 19. Nd2 {[%clk 0:02:28]}  Ne8 {[%clk 0:01:49]} 20. Nc4 {[%clk 0:02:28]}  f6 {[%clk 0:01:45]} 21. g4 {[%clk 0:02:29]}  h6 {[%clk 0:01:42]} 22. h4 {[%clk 0:02:29]}  g5 {[%clk 0:01:29]} 23. Bf2 {[%clk 0:02:23]}  Bf8 {[%clk 0:01:25]} 24. Rd2 {[%clk 0:02:09]}  Be7 {[%clk 0:01:21]} 25. Rhd1 {[%clk 0:02:09]}  Kf7 {[%clk 0:01:21]} 26. Ne1 {[%clk 0:01:59]}  Nf8 {[%clk 0:01:11]} 27. Rxd8 {[%clk 0:01:56]}  Bxd8 {[%clk 0:01:11]} 28. Ng2 {[%clk 0:01:42]}  Bc7 {[%clk 0:00:45]} 29. Bc5 {[%clk 0:01:39]}  Rd8 {[%clk 0:00:43]} 30. Rxd8 {[%clk 0:01:28]}  Bxd8 {[%clk 0:00:44]} 31. Bxf8 {[%clk 0:01:26]}  Kxf8 {[%clk 0:00:44]} 32. h5 {[%clk 0:01:26]}  Ng7 {[%clk 0:00:37]} 33. Nge3 {[%clk 0:01:26]}  Kf7 {[%clk 0:00:35]} 34. Nf5 {[%clk 0:01:26]}  Nxf5 {[%clk 0:00:25]} 35. gxf5 {[%clk 0:01:27]}  Ke8 {[%clk 0:00:16]} 36. Kd3 {[%clk 0:01:26]}  Kf7 {[%clk 0:00:08]} 37. c3 {[%clk 0:01:12]}  bxc3 {[%clk 0:00:07]} 38. Kxc3 {[%clk 0:01:13]}  Ke7 {[%clk 0:00:06]} 39. b4 {[%clk 0:01:13]}  axb4+ {[%clk 0:00:05]} 40. Kxb4 {[%clk 0:00:39]}  Kd7 {[%clk 0:00:05]} 41. Ne3 {[%clk 0:00:36]}  Be7+ {[%clk 0:00:06]} 42. Kc4 {[%clk 0:00:35]}  Bf8 {[%clk 0:00:06]} 43. Ng4 {[%clk 0:00:35]}  Bg7 {[%clk 0:00:07]} 44. a5 {[%clk 0:00:33]}  Kc7 {[%clk 0:00:07]} 45. Ne3 {[%clk 0:00:26]}  Bf8 {[%clk 0:00:07]} 46. Nf1 {[%clk 0:00:26]}  Kb7 {[%clk 0:00:06]} 47. Nh2 {[%clk 0:00:24]}  Ka6 {[%clk 0:00:07]} 48. Ng4 {[%clk 0:00:24]}  Kxa5 {[%clk 0:00:05]} 49. Nxf6 {[%clk 0:00:24]}  Ka4 {[%clk 0:00:05]} 50. Nd7 {[%clk 0:00:24]}  Bd6 {[%clk 0:00:05]} 51. f6 {[%clk 0:00:22]}  Ka3 {[%clk 0:00:05]} 52. f7 {[%clk 0:00:22]}  Kb2 {[%clk 0:00:06]} 53. Nxe5 {[%clk 0:00:22]}  Kc2 {[%clk 0:00:05]} 54. Nxc6 {[%clk 0:00:22]}  Kd2 {[%clk 0:00:05]} 55. e5 {[%clk 0:00:22]}  Bf8 {[%clk 0:00:06]} 56. e6 {[%clk 0:00:23]}  g4 {[%clk 0:00:06]} 57. fxg4 {[%clk 0:00:23]} 1-0


[Site "https://www.chess.com"]

[Event "Titled Tuesday Blitz March 07 Early 2023"]
[White "Gonzalez, Francisco Silva"]
[Black "Manelyuk, Daniil"]
[WhiteFideId "1512285"]
[BlackFideId "44173920"]
[WhiteElo "2074"]
[BlackElo "2259"]
[Result "1/2-1/2"]
[Round "08"]
[TimeControl "180+2"]
[Date "2023.03.07"]
[WhiteClock "0:00:32"]
[BlackClock "0:00:23"]

1. d4 {[%clk 0:03:00]}  Nf6 {[%clk 0:02:59]} 2. c4 {[%clk 0:02:55]}  c5 {[%clk 0:02:59]} 3. d5 {[%clk 0:02:54]}  b5 {[%clk 0:02:59]} 4. cxb5 {[%clk 0:02:45]}  a6 {[%clk 0:02:59]} 5. b6 {[%clk 0:02:46]}  e6 {[%clk 0:02:58]} 6. Nc3 {[%clk 0:02:45]}  Bb7 {[%clk 0:02:56]} 7. e4 {[%clk 0:02:45]}  exd5 {[%clk 0:02:55]} 8. exd5 {[%clk 0:02:43]}  Bd6 {[%clk 0:02:55]} 9. Qe2+ {[%clk 0:02:40]}  Kf8 {[%clk 0:02:54]} 10. Qd1 {[%clk 0:02:16]}  Qe7+ {[%clk 0:02:36]} 11. Be3 {[%clk 0:02:15]}  g6 {[%clk 0:02:32]} 12. Nf3 {[%clk 0:02:13]}  Ng4 {[%clk 0:02:28]} 13. Qe2 {[%clk 0:02:12]}  Nxe3 {[%clk 0:02:26]} 14. fxe3 {[%clk 0:02:12]}  Kg7 {[%clk 0:02:24]} 15. e4 {[%clk 0:02:10]}  Re8 {[%clk 0:02:23]} 16. O-O-O {[%clk 0:02:10]}  Be5 {[%clk 0:02:22]} 17. Nxe5 {[%clk 0:02:09]}  Qxe5 {[%clk 0:02:23]} 18. Qg4 {[%clk 0:02:07]}  d6 {[%clk 0:02:22]} 19. Bd3 {[%clk 0:02:06]}  Bc8 {[%clk 0:02:20]} 20. Qh4 {[%clk 0:02:04]}  Nd7 {[%clk 0:02:19]} 21. Rhf1 {[%clk 0:02:04]}  Nxb6 {[%clk 0:02:17]} 22. Rxf7+ {[%clk 0:02:01]}  Kxf7 {[%clk 0:02:13]} 23. Qxh7+ {[%clk 0:02:01]}  Qg7 {[%clk 0:02:14]} 24. Rf1+ {[%clk 0:02:01]}  Bf5 {[%clk 0:02:14]} 25. exf5 {[%clk 0:01:56]}  Qxh7 {[%clk 0:02:07]} 26. fxg6+ {[%clk 0:01:56]}  Kg7 {[%clk 0:02:07]} 27. gxh7 {[%clk 0:01:56]}  c4 {[%clk 0:02:07]} 28. Be4 {[%clk 0:01:52]}  Na4 {[%clk 0:02:06]} 29. Rf4 {[%clk 0:01:49]}  Nc5 {[%clk 0:02:04]} 30. Rg4+ {[%clk 0:01:48]}  Kh8 {[%clk 0:02:04]} 31. Bf5 {[%clk 0:01:44]}  Re5 {[%clk 0:02:01]} 32. Rf4 {[%clk 0:01:38]}  Rf8 {[%clk 0:01:58]} 33. g4 {[%clk 0:01:28]}  Nd3+ {[%clk 0:01:58]} 34. Bxd3 {[%clk 0:01:28]}  Rxf4 {[%clk 0:01:59]} 35. Bf5 {[%clk 0:01:27]}  Rf2 {[%clk 0:01:58]} 36. h4 {[%clk 0:01:25]}  Re1+ {[%clk 0:01:53]} 37. Nd1 {[%clk 0:01:25]}  Rg1 {[%clk 0:01:51]} 38. a3 {[%clk 0:01:18]}  Rff1 {[%clk 0:01:47]} 39. Bc2 {[%clk 0:01:16]}  Rxg4 {[%clk 0:01:47]} 40. h5 {[%clk 0:01:16]}  Rd4 {[%clk 0:01:46]} 41. b3 {[%clk 0:01:09]}  c3 {[%clk 0:01:44]} 42. b4 {[%clk 0:01:09]}  Rxd5 {[%clk 0:01:44]} 43. a4 {[%clk 0:01:09]}  Rd4 {[%clk 0:01:41]} 44. b5 {[%clk 0:01:09]}  axb5 {[%clk 0:01:41]} 45. axb5 {[%clk 0:01:09]}  Rb4 {[%clk 0:01:40]} 46. Bd3 {[%clk 0:01:07]}  Rh1 {[%clk 0:01:10]} 47. Kc2 {[%clk 0:01:07]}  Rd4 {[%clk 0:01:07]} 48. Nf2 {[%clk 0:01:04]}  Rxh5 {[%clk 0:01:02]} 49. Kxc3 {[%clk 0:01:03]}  Rdd5 {[%clk 0:01:02]} 50. b6 {[%clk 0:01:00]}  Rc5+ {[%clk 0:01:00]} 51. Kd4 {[%clk 0:00:59]}  Rh4+ {[%clk 0:00:54]} 52. Ne4 {[%clk 0:00:55]}  Rc6 {[%clk 0:00:54]} 53. b7 {[%clk 0:00:54]}  Rb6 {[%clk 0:00:53]} 54. Kd5 {[%clk 0:00:55]}  Rh5+ {[%clk 0:00:52]} 55. Ke6 {[%clk 0:00:54]}  d5+ {[%clk 0:00:49]} 56. Nd6 {[%clk 0:00:47]}  Rh6+ {[%clk 0:00:48]} 57. Ke7 {[%clk 0:00:47]}  Rxh7+ {[%clk 0:00:33]} 58. Bxh7 {[%clk 0:00:45]}  Kxh7 {[%clk 0:00:33]} 59. Kd7 {[%clk 0:00:42]}  d4 {[%clk 0:00:33]} 60. Kc7 {[%clk 0:00:42]}  Rxb7+ {[%clk 0:00:20]} 61. Kxb7 {[%clk 0:00:40]}  d3 {[%clk 0:00:20]} 62. Nc4 {[%clk 0:00:40]}  Kg6 {[%clk 0:00:21]} 63. Kc6 {[%clk 0:00:40]}  Kf5 {[%clk 0:00:22]} 64. Kc5 {[%clk 0:00:40]}  Kf4 {[%clk 0:00:23]} 65. Kd4 {[%clk 0:00:40]}  Kf3 {[%clk 0:00:24]} 66. Kc3 {[%clk 0:00:39]}  Ke4 {[%clk 0:00:23]} 67. Kd2 {[%clk 0:00:38]}  Kd4 {[%clk 0:00:23]} 68. Nb2 {[%clk 0:00:38]}  Kc5 {[%clk 0:00:23]} 69. Nxd3+ {[%clk 0:00:32]} 1/2-1/2


[Site "https://www.chess.com"]

[Event "Titled Tuesday Blitz March 07 Early 2023"]
[White "Prokofiev, Valentyn"]
[Black "Omariev, Maksim"]
[WhiteFideId "14160161"]
[BlackFideId "4193423"]
[WhiteElo "2260"]
[BlackElo "2482"]
[Result "0-1"]
[Round "08"]
[TimeControl "180+2"]
[Date "2023.03.07"]
[WhiteClock "0:00:01"]
[BlackClock "0:00:02"]

1. g4 {[%clk 0:03:00]}  d5 {[%clk 0:02:50]} 2. Bg2 {[%clk 0:03:00]}  Bxg4 {[%clk 0:02:51]} 3. c4 {[%clk 0:02:58]}  c6 {[%clk 0:02:50]} 4. Qb3 {[%clk 0:02:31]}  Nf6 {[%clk 0:02:50]} 5. Qxb7 {[%clk 0:02:24]}  Nbd7 {[%clk 0:02:49]} 6. Nc3 {[%clk 0:02:17]}  e6 {[%clk 0:02:46]} 7. cxd5 {[%clk 0:02:03]}  cxd5 {[%clk 0:02:39]} 8. Nf3 {[%clk 0:02:03]}  Be7 {[%clk 0:02:23]} 9. O-O {[%clk 0:01:55]}  O-O {[%clk 0:02:21]} 10. d4 {[%clk 0:01:52]}  Rb8 {[%clk 0:01:45]} 11. Qxa7 {[%clk 0:01:47]}  Bd6 {[%clk 0:01:38]} 12. Qa6 {[%clk 0:01:37]}  Qe7 {[%clk 0:01:03]} 13. h3 {[%clk 0:01:29]}  Bf5 {[%clk 0:00:50]} 14. Qa4 {[%clk 0:01:25]}  Ne4 {[%clk 0:00:45]} 15. Qd1 {[%clk 0:01:01]}  Qf6 {[%clk 0:00:36]} 16. a4 {[%clk 0:00:51]}  h5 {[%clk 0:00:04]} 17. Nb5 {[%clk 0:00:44]}  Bb4 {[%clk 0:00:02]} 18. Bf4 {[%clk 0:00:41]}  Bxh3 {[%clk 0:00:01]} 19. Bxb8 {[%clk 0:00:24]}  Bxg2 {[%clk 0:00:01]} 20. Kxg2 {[%clk 0:00:23]}  Rxb8 {[%clk 0:00:02]} 21. Rg1 {[%clk 0:00:19]}  Qf5 {[%clk 0:00:02]} 22. Rh1 {[%clk 0:00:08]}  Ndf6 {[%clk 0:00:02]} 23. Qd3 {[%clk 0:00:07]}  g5 {[%clk 0:00:02]} 24. Rag1 {[%clk 0:00:06]}  g4 {[%clk 0:00:03]} 25. Kf1 {[%clk 0:00:05]}  Kf8 {[%clk 0:00:02]} 26. Nh4 {[%clk 0:00:01]}  Qxf2# {[%clk 0:00:02]} 0-1


[Site "https://www.chess.com"]

[Event "Titled Tuesday Blitz March 07 Early 2023"]
[White "Kvaloy, Aksel Bu"]
[Black "Andreev, Konstantin"]
[WhiteFideId "1528815"]
[BlackFideId "24239305"]
[WhiteElo "2208"]
[BlackElo "2106"]
[Result "0-1"]
[Round "08"]
[TimeControl "180+2"]
[Date "2023.03.07"]
[WhiteClock "0:00:10"]
[BlackClock "0:00:07"]

1. d4 {[%clk 0:03:00]}  Nf6 {[%clk 0:02:59]} 2. c4 {[%clk 0:03:01]}  e6 {[%clk 0:02:59]} 3. g3 {[%clk 0:03:00]}  d5 {[%clk 0:02:59]} 4. Nf3 {[%clk 0:03:00]}  Bb4+ {[%clk 0:02:59]} 5. Bd2 {[%clk 0:02:59]}  a5 {[%clk 0:02:59]} 6. Bg2 {[%clk 0:02:59]}  O-O {[%clk 0:02:59]} 7. Qc2 {[%clk 0:03:00]}  Be7 {[%clk 0:02:57]} 8. O-O {[%clk 0:03:00]}  c6 {[%clk 0:02:54]} 9. Bf4 {[%clk 0:02:57]}  a4 {[%clk 0:02:53]} 10. Nbd2 {[%clk 0:02:54]}  a3 {[%clk 0:02:49]} 11. b3 {[%clk 0:02:53]}  Nbd7 {[%clk 0:02:20]} 12. e4 {[%clk 0:02:53]}  dxe4 {[%clk 0:02:20]} 13. Nxe4 {[%clk 0:02:54]}  Nxe4 {[%clk 0:02:21]} 14. Qxe4 {[%clk 0:02:54]}  Nf6 {[%clk 0:02:22]} 15. Qe2 {[%clk 0:02:55]}  Qa5 {[%clk 0:02:21]} 16. Rfd1 {[%clk 0:02:53]}  Rd8 {[%clk 0:02:20]} 17. Rac1 {[%clk 0:02:51]}  Bd7 {[%clk 0:02:19]} 18. Ne5 {[%clk 0:02:49]}  Be8 {[%clk 0:02:19]} 19. c5 {[%clk 0:02:48]}  Nd5 {[%clk 0:02:14]} 20. Nc4 {[%clk 0:02:46]}  Nxf4 {[%clk 0:02:09]} 21. gxf4 {[%clk 0:02:44]}  Qa6 {[%clk 0:02:02]} 22. f5 {[%clk 0:02:39]}  Bg5 {[%clk 0:01:54]} 23. Rc3 {[%clk 0:02:09]}  exf5 {[%clk 0:01:51]} 24. Qe5 {[%clk 0:02:01]}  Bf6 {[%clk 0:01:48]} 25. Qxf5 {[%clk 0:02:01]}  Bd7 {[%clk 0:01:40]} 26. Qh5 {[%clk 0:01:52]}  Be6 {[%clk 0:01:29]} 27. Nd6 {[%clk 0:01:51]}  g6 {[%clk 0:01:17]} 28. Qh6 {[%clk 0:01:40]}  Bg7 {[%clk 0:01:13]} 29. Qf4 {[%clk 0:01:40]}  Qe2 {[%clk 0:01:06]} 30. Rd2 {[%clk 0:01:16]}  Qe1+ {[%clk 0:01:04]} 31. Bf1 {[%clk 0:01:15]}  Rd7 {[%clk 0:00:46]} 32. Rcc2 {[%clk 0:01:08]}  Bh3 {[%clk 0:00:37]} 33. Rd1 {[%clk 0:00:56]}  Qxd1 {[%clk 0:00:36]} 34. Rc1 {[%clk 0:00:56]}  Qxd4 {[%clk 0:00:34]} 35. Qxd4 {[%clk 0:00:56]}  Bxd4 {[%clk 0:00:34]} 36. Bxh3 {[%clk 0:00:56]}  Re7 {[%clk 0:00:33]} 37. Rc4 {[%clk 0:00:51]}  Be5 {[%clk 0:00:28]} 38. Rc2 {[%clk 0:00:23]}  Rd8 {[%clk 0:00:26]} 39. Rd2 {[%clk 0:00:24]}  b6 {[%clk 0:00:18]} 40. b4 {[%clk 0:00:22]}  bxc5 {[%clk 0:00:16]} 41. bxc5 {[%clk 0:00:23]}  Bxd6 {[%clk 0:00:14]} 42. cxd6 {[%clk 0:00:22]}  Re1+ {[%clk 0:00:14]} 43. Kg2 {[%clk 0:00:23]}  Rb1 {[%clk 0:00:14]} 44. d7 {[%clk 0:00:13]}  Rb2 {[%clk 0:00:13]} 45. Rd1 {[%clk 0:00:12]}  Rxa2 {[%clk 0:00:13]} 46. Re1 {[%clk 0:00:10]}  Kf8 {[%clk 0:00:13]} 47. Re3 {[%clk 0:00:05]}  Ra1 {[%clk 0:00:11]} 48. Rc3 {[%clk 0:00:05]}  a2 {[%clk 0:00:10]} 49. Ra3 {[%clk 0:00:04]}  c5 {[%clk 0:00:10]} 50. Bg4 {[%clk 0:00:04]}  c4 {[%clk 0:00:09]} 51. Bf3 {[%clk 0:00:01]}  Rxd7 {[%clk 0:00:07]} 52. Ra8+ {[%clk 0:00:01]}  Ke7 {[%clk 0:00:07]} 53. Ra4 {[%clk 0:00:02]}  c3 {[%clk 0:00:07]} 54. Be4 {[%clk 0:00:03]}  Rc7 {[%clk 0:00:06]} 55. Bc2 {[%clk 0:00:02]}  Rb7 {[%clk 0:00:06]} 56. Kf3 {[%clk 0:00:02]}  Rb2 {[%clk 0:00:06]} 57. Ra7+ {[%clk 0:00:03]}  Kd6 {[%clk 0:00:06]} 58. Bd3 {[%clk 0:00:04]}  c2 {[%clk 0:00:06]} 59. Ra6+ {[%clk 0:00:04]}  Kc5 {[%clk 0:00:06]} 60. Bxc2 {[%clk 0:00:04]}  Rxc2 {[%clk 0:00:06]} 61. Ra8 {[%clk 0:00:05]}  Kb6 {[%clk 0:00:06]} 62. Rb8+ {[%clk 0:00:05]}  Kc7 {[%clk 0:00:07]} 63. Ra8 {[%clk 0:00:05]}  Rb1 {[%clk 0:00:08]} 64. Rf8 {[%clk 0:00:04]}  a1=Q {[%clk 0:00:08]} 65. Rxf7+ {[%clk 0:00:05]}  Kd6 {[%clk 0:00:09]} 66. Rf6+ {[%clk 0:00:04]}  Ke7 {[%clk 0:00:09]} 67. Rf4 {[%clk 0:00:04]}  Qa8+ {[%clk 0:00:09]} 68. Kg3 {[%clk 0:00:04]}  Rb3+ {[%clk 0:00:09]} 69. f3 {[%clk 0:00:05]}  Rcc3 {[%clk 0:00:09]} 70. Re4+ {[%clk 0:00:05]}  Qxe4 {[%clk 0:00:08]} 71. h4 {[%clk 0:00:04]}  Qxf3+ {[%clk 0:00:08]} 72. Kh2 {[%clk 0:00:05]}  Qf2+ {[%clk 0:00:07]} 73. Kh1 {[%clk 0:00:05]}  Qa2 {[%clk 0:00:06]} 74. h5 {[%clk 0:00:04]}  g5 {[%clk 0:00:05]} 75. h6 {[%clk 0:00:05]}  Rb2 {[%clk 0:00:04]} 76. Kg1 {[%clk 0:00:05]}  Rcc2 {[%clk 0:00:05]} 77. Kh1 {[%clk 0:00:06]}  Qb3 {[%clk 0:00:05]} 78. Kg1 {[%clk 0:00:07]}  Ra2 {[%clk 0:00:05]} 79. Kh1 {[%clk 0:00:08]}  Rcb2 {[%clk 0:00:06]} 80. Kg1 {[%clk 0:00:09]}  Qc2 {[%clk 0:00:06]} 81. Kh1 {[%clk 0:00:10]}  Ra1# {[%clk 0:00:07]} 0-1


[Site "https://www.chess.com"]

[Event "Titled Tuesday Blitz March 07 Early 2023"]
[White "Domingo Nunez, Ruben"]
[Black "Petrova, Irina"]
[WhiteFideId "22245570"]
[BlackFideId "14124122"]
[WhiteElo "2404"]
[BlackElo "2084"]
[Result "1-0"]
[Round "08"]
[TimeControl "180+2"]
[Date "2023.03.07"]
[WhiteClock "0:00:24"]
[BlackClock "0:00:32"]

1. b3 {[%clk 0:03:00]}  d6 {[%clk 0:03:00]} 2. Bb2 {[%clk 0:02:56]}  e5 {[%clk 0:03:01]} 3. c4 {[%clk 0:02:56]}  Nf6 {[%clk 0:03:00]} 4. e3 {[%clk 0:02:57]}  g6 {[%clk 0:03:00]} 5. Be2 {[%clk 0:02:58]}  Bg7 {[%clk 0:03:00]} 6. Nf3 {[%clk 0:02:59]}  O-O {[%clk 0:03:00]} 7. O-O {[%clk 0:02:59]}  Nc6 {[%clk 0:03:01]} 8. d4 {[%clk 0:03:00]}  exd4 {[%clk 0:02:55]} 9. exd4 {[%clk 0:02:59]}  Bf5 {[%clk 0:02:51]} 10. d5 {[%clk 0:02:58]}  Nb4 {[%clk 0:02:40]} 11. Nd4 {[%clk 0:02:53]}  Nd7 {[%clk 0:02:28]} 12. Na3 {[%clk 0:02:22]}  Nc5 {[%clk 0:02:25]} 13. Bc3 {[%clk 0:02:17]}  a5 {[%clk 0:02:19]} 14. Nab5 {[%clk 0:02:09]}  Bd7 {[%clk 0:02:06]} 15. a3 {[%clk 0:02:06]}  Nba6 {[%clk 0:01:49]} 16. Bxa5 {[%clk 0:02:03]}  Re8 {[%clk 0:01:35]} 17. Re1 {[%clk 0:01:57]}  b6 {[%clk 0:01:31]} 18. Bc3 {[%clk 0:01:56]}  Ne4 {[%clk 0:01:30]} 19. Bb2 {[%clk 0:01:55]}  Bxb5 {[%clk 0:01:28]} 20. cxb5 {[%clk 0:01:56]}  Nac5 {[%clk 0:01:23]} 21. Nc6 {[%clk 0:01:22]}  Qh4 {[%clk 0:01:23]} 22. g3 {[%clk 0:01:20]}  Qg5 {[%clk 0:01:16]} 23. Bxg7 {[%clk 0:01:14]}  Kxg7 {[%clk 0:01:17]} 24. b4 {[%clk 0:01:13]}  Qf6 {[%clk 0:01:09]} 25. bxc5 {[%clk 0:01:04]}  Qxf2+ {[%clk 0:01:08]} 26. Kh1 {[%clk 0:01:04]}  bxc5 {[%clk 0:00:58]} 27. Qb3 {[%clk 0:00:35]}  Nxg3+ {[%clk 0:00:54]} 28. Qxg3 {[%clk 0:00:33]}  Rxe2 {[%clk 0:00:55]} 29. Qxf2 {[%clk 0:00:27]}  Rxf2 {[%clk 0:00:55]} 30. a4 {[%clk 0:00:27]}  Rd2 {[%clk 0:00:52]} 31. a5 {[%clk 0:00:24]}  Rxd5 {[%clk 0:00:52]} 32. b6 {[%clk 0:00:25]}  cxb6 {[%clk 0:00:33]} 33. axb6 {[%clk 0:00:26]}  Rxa1 {[%clk 0:00:32]} 34. Rxa1 {[%clk 0:00:27]}  c4 {[%clk 0:00:31]} 35. b7 {[%clk 0:00:24]}  Rb5 {[%clk 0:00:32]} 36. b8=Q {[%clk 0:00:24]} 1-0


[Site "https://www.chess.com"]

[Event "Titled Tuesday Blitz March 07 Early 2023"]
[White "Saito, Vinicius"]
[Black "Melikyan, Gnel"]
[WhiteFideId "2113384"]
[BlackFideId "54109990"]
[WhiteElo "2152"]
[BlackElo "2138"]
[Result "1-0"]
[Round "08"]
[TimeControl "180+2"]
[Date "2023.03.07"]
[WhiteClock "0:01:49"]
[BlackClock "0:00:52"]

1. e4 {[%clk 0:03:00]}  f6 {[%clk 0:02:53]} 2. d4 {[%clk 0:02:59]}  g6 {[%clk 0:02:53]} 3. h4 {[%clk 0:02:58]}  h5 {[%clk 0:02:52]} 4. f3 {[%clk 0:02:57]}  d6 {[%clk 0:02:53]} 5. Be3 {[%clk 0:02:58]}  e5 {[%clk 0:02:53]} 6. d5 {[%clk 0:02:55]}  f5 {[%clk 0:02:52]} 7. c4 {[%clk 0:02:53]}  fxe4 {[%clk 0:02:50]} 8. fxe4 {[%clk 0:02:53]}  Nf6 {[%clk 0:02:51]} 9. Bg5 {[%clk 0:02:53]}  Bh6 {[%clk 0:02:47]} 10. Bxh6 {[%clk 0:02:52]}  Rxh6 {[%clk 0:02:47]} 11. Nc3 {[%clk 0:02:52]}  Na6 {[%clk 0:02:42]} 12. Qd2 {[%clk 0:02:52]}  Rh7 {[%clk 0:02:42]} 13. O-O-O {[%clk 0:02:50]}  Nc5 {[%clk 0:02:41]} 14. Re1 {[%clk 0:02:51]}  Bg4 {[%clk 0:02:38]} 15. Nf3 {[%clk 0:02:51]}  Qe7 {[%clk 0:02:36]} 16. Ng5 {[%clk 0:02:51]}  O-O-O {[%clk 0:02:35]} 17. Nxh7 {[%clk 0:02:50]}  Nxh7 {[%clk 0:02:33]} 18. Be2 {[%clk 0:02:49]}  Bd7 {[%clk 0:02:32]} 19. g3 {[%clk 0:02:45]}  Qg7 {[%clk 0:02:22]} 20. Ref1 {[%clk 0:02:44]}  Nf6 {[%clk 0:02:17]} 21. Qe3 {[%clk 0:02:37]}  a5 {[%clk 0:02:14]} 22. Rf2 {[%clk 0:02:34]}  Rf8 {[%clk 0:02:13]} 23. Rhf1 {[%clk 0:02:34]}  Bh3 {[%clk 0:02:13]} 24. Rh1 {[%clk 0:02:30]}  Bd7 {[%clk 0:02:14]} 25. b3 {[%clk 0:02:24]}  b6 {[%clk 0:02:11]} 26. Kb2 {[%clk 0:02:19]}  Kb7 {[%clk 0:02:11]} 27. a3 {[%clk 0:02:19]}  Ra8 {[%clk 0:02:02]} 28. Rhf1 {[%clk 0:02:17]}  Rf8 {[%clk 0:01:46]} 29. b4 {[%clk 0:02:14]}  axb4 {[%clk 0:01:45]} 30. axb4 {[%clk 0:02:15]}  Na6 {[%clk 0:01:38]} 31. c5 {[%clk 0:01:55]}  bxc5 {[%clk 0:01:28]} 32. Bxa6+ {[%clk 0:01:55]}  Kxa6 {[%clk 0:01:29]} 33. bxc5 {[%clk 0:01:55]}  Bh3 {[%clk 0:00:54]} 34. Ra1+ {[%clk 0:01:48]}  Kb7 {[%clk 0:00:52]} 35. c6+ {[%clk 0:01:49]}  Kb8 {[%clk 0:00:52]} 36. Qa7+ {[%clk 0:01:49]} 1-0


[Site "https://www.chess.com"]

[Event "Titled Tuesday Blitz March 07 Early 2023"]
[White "Garrido, Denis"]
[Black "Jimenez Almeida, Luis David"]
[WhiteFideId "601217"]
[BlackFideId "22242244"]
[WhiteElo "2264"]
[BlackElo "2245"]
[Result "0-1"]
[Round "08"]
[TimeControl "180+2"]
[Date "2023.03.07"]
[WhiteClock "0:00:03"]
[BlackClock "0:00:03"]

1. e4 {[%clk 0:03:00]}  c6 {[%clk 0:02:59]} 2. d4 {[%clk 0:03:00]}  Na6 {[%clk 0:03:00]} 3. c4 {[%clk 0:02:57]}  e5 {[%clk 0:02:59]} 4. Nf3 {[%clk 0:02:56]}  exd4 {[%clk 0:02:56]} 5. Nxd4 {[%clk 0:02:57]}  Bb4+ {[%clk 0:02:55]} 6. Bd2 {[%clk 0:02:56]}  Qe7 {[%clk 0:02:53]} 7. Nc3 {[%clk 0:02:48]}  Bxc3 {[%clk 0:02:37]} 8. Bxc3 {[%clk 0:02:48]}  Qxe4+ {[%clk 0:02:37]} 9. Be2 {[%clk 0:02:48]}  Qxg2 {[%clk 0:02:37]} 10. Bf3 {[%clk 0:02:47]}  Qg5 {[%clk 0:02:32]} 11. h4 {[%clk 0:02:14]}  Qe7+ {[%clk 0:02:29]} 12. Kf1 {[%clk 0:02:13]}  d6 {[%clk 0:02:23]} 13. Qc2 {[%clk 0:02:08]}  Nf6 {[%clk 0:02:14]} 14. Nxc6 {[%clk 0:01:56]}  Qc7 {[%clk 0:02:04]} 15. Re1+ {[%clk 0:01:53]}  Be6 {[%clk 0:02:04]} 16. Qa4 {[%clk 0:01:22]}  Nc5 {[%clk 0:01:51]} 17. Qb5 {[%clk 0:01:01]}  a6 {[%clk 0:01:51]} 18. Qa5 {[%clk 0:01:01]}  Qxa5 {[%clk 0:01:28]} 19. Nxa5 {[%clk 0:01:02]}  O-O {[%clk 0:01:27]} 20. Rg1 {[%clk 0:00:57]}  Kh8 {[%clk 0:01:26]} 21. Rg3 {[%clk 0:00:49]}  Rab8 {[%clk 0:01:16]} 22. Rd1 {[%clk 0:00:48]}  b6 {[%clk 0:00:49]} 23. h5 {[%clk 0:00:38]}  h6 {[%clk 0:00:40]} 24. Nc6 {[%clk 0:00:36]}  Bxc4+ {[%clk 0:00:39]} 25. Kg1 {[%clk 0:00:36]}  Rbc8 {[%clk 0:00:38]} 26. Rxd6 {[%clk 0:00:35]}  Be6 {[%clk 0:00:16]} 27. Ne5 {[%clk 0:00:23]}  Na4 {[%clk 0:00:15]} 28. Bd4 {[%clk 0:00:21]}  Rc1+ {[%clk 0:00:15]} 29. Kg2 {[%clk 0:00:22]}  Nc5 {[%clk 0:00:13]} 30. Ng4 {[%clk 0:00:20]}  Nfe4 {[%clk 0:00:11]} 31. Bxe4 {[%clk 0:00:17]}  Nxe4 {[%clk 0:00:12]} 32. Nxh6 {[%clk 0:00:15]}  Nxg3 {[%clk 0:00:12]} 33. fxg3 {[%clk 0:00:14]}  Kh7 {[%clk 0:00:09]} 34. Be3 {[%clk 0:00:04]}  Rc2+ {[%clk 0:00:07]} 35. Kf3 {[%clk 0:00:03]}  gxh6 {[%clk 0:00:07]} 36. Rxb6 {[%clk 0:00:03]}  Rd8 {[%clk 0:00:05]} 37. Ke4 {[%clk 0:00:04]}  Re2 {[%clk 0:00:02]} 38. Kf3 {[%clk 0:00:04]}  Re1 {[%clk 0:00:03]} 39. Rxa6 {[%clk 0:00:03]}  Rd3 {[%clk 0:00:03]} 0-1


[Site "https://www.chess.com"]